bitfinex-derivatives/quotes_SOLF0:USTF0_20260115
["timestamp","ask_amount","ask_price","bid_price","bid_amount"]
[1768488179802,3.2204746,143.9,143.83,0.04650843]
[1768488179997,6.2569,143.89,143.83,0.04650843]
[1768488180698,6.2572,143.88,143.83,0.04650843]
[1768488181003,3.2204746,143.86,143.77,3.19653205]
[1768488181202,6.2594,143.83,143.77,82.18]
[1768488181898,6.2586,143.85,143.77,82.18]
[1768488182095,3.2204746,143.86,143.79,0.05146169]
[1768488183003,6.259,143.84,143.79,0.05146169]
[1768488183305,100.5694746,143.86,143.79,0.05146169]
[1768488184696,3.2204746,143.85,143.79,0.05146169]
[1768488184901,6.2594,143.83,143.79,0.05146169]
[1768488185705,3.2204746,143.83,143.77,82.18]
[1768488185905,0.0495966,143.82,143.73,6.2634]
[1768488186208,3.2204746,143.83,143.74,85.37653205]
[1768488186511,3.2204746,143.83,143.74,82.18]
[1768488186713,6.2606,143.8,143.74,82.18]
[1768488186910,6.30739335,143.8,143.74,82.18]
[1768488187205,3.26726795,143.8,143.74,82.18]
[1768488188215,6.2612,143.79,143.74,82.18]
[1768488188807,6.2612,143.79,143.75,0.0483037]
[1768488189711,0.04679335,143.8,143.75,0.0483037]
[1768488190914,6.261,143.79,143.75,0.0483037]
[1768488192016,6.2616,143.78,143.74,48.1539037]
[1768488192311,3.2204746,143.78,143.68,3.19653205]
[1768488192512,3.2204746,143.78,143.68,85.39653205]
[1768488193112,0.05059328,143.74,143.68,85.39653205]
[1768488193312,3.2204746,143.78,143.72,0.05238846]
[1768488193802,6.2616,143.78,143.72,0.05238846]
[1768488194010,3.2204746,143.81,143.72,0.05238846]
[1768488194409,0.04988379,143.78,143.71,3.19653205]
[1768488194613,0.04988379,143.78,143.73,0.05012209]
[1768488194812,3.2204746,143.81,143.73,0.05012209]
[1768488194813,82.2,143.83,143.73,3.24665414]
[1768488195111,85.4204746,143.83,143.73,3.19653205]
[1768488195918,91.6797746,143.83,143.73,3.19653205]
[1768488196317,91.6797746,143.83,143.73,9.46003205]
[1768488196521,0.04701459,143.79,143.77,0.04607021]
[1768488196716,91.6797746,143.83,143.77,0.04607021]
[1768488196920,3.2204746,143.8,143.67,3.19653205]
[1768488197223,3.2204746,143.8,143.68,3.19653205]
[1768488197819,3.2204746,143.8,143.71,3.19653205]
[1768488198211,3.2204746,143.8,143.71,9.46093205]
[1768488198411,0.04791955,143.77,143.74,0.04420231]
[1768488200315,3.2204746,143.84,143.74,0.04420231]
[1768488200517,3.2204746,143.83,143.73,3.19653205]
[1768488200814,3.2204746,143.86,143.74,3.19653205]
[1768488201117,3.08715125,143.85,143.74,3.19653205]
[1768488201516,3.08715125,143.85,143.78,0.04489054]
[1768488202112,3.08715125,143.87,143.78,0.04489054]
[1768488202313,3.08715125,143.9,143.79,3.32836555]
[1768488202709,3.08715125,143.88,143.76,100.73866555]
[1768488203322,3.08715125,143.85,143.76,6.2619]
[1768488203509,0.0464166,143.83,143.76,6.2619]
[1768488204010,0.0464166,143.83,143.76,100.74126555]
[1768488204211,3.15125742,143.9,143.77,3.13937906]
[1768488204414,3.15125742,143.86,143.72,3.13937906]
[1768488204611,3.15125742,143.84,143.72,3.13937906]
[1768488205014,9.41035742,143.84,143.74,6.2629]
[1768488205310,0.05214712,143.8,143.78,0.04757613]
[1768488205522,3.15125742,143.83,143.74,3.13937906]
[1768488206518,3.15125742,143.83,143.77,6.31394636]
[1768488207020,0.05297854,143.81,143.77,6.31394636]
[1768488207621,0.05297854,143.81,143.77,0.05224636]
[1768488208414,9.40925742,143.86,143.77,6.31374636]
[1768488208620,3.15125742,143.85,143.77,6.2615]
[1768488209423,3.15125742,143.85,143.75,3.13937906]
[1768488209616,3.15125742,143.85,143.8,0.05175869]
[1768488210521,3.15125742,143.85,143.74,82.2]
[1768488211018,6.259,143.84,143.77,6.2616]
[1768488211218,9.41025742,143.84,143.77,6.2616]
[1768488211722,9.41025742,143.84,143.79,0.05308489]
[1768488211924,3.15125742,143.83,143.75,6.2624]
[1768488212322,3.15125742,143.82,143.71,3.13937906]
[1768488213123,3.15125742,143.82,143.75,0.05278427]
[1768488213426,0.05086525,143.78,143.75,0.05278427]
[1768488213726,3.15125742,143.8,143.73,6.2635]
[1768488213917,3.15125742,143.8,143.75,0.0471064]
[1768488214119,0.05008597,143.78,143.75,0.0471064]
[1768488214520,3.15125742,143.8,143.75,0.0471064]
[1768488215518,3.195053,143.79,143.72,6.2637]
[1768488215719,3.195053,143.79,143.71,3.13937906]
[1768488216327,3.195053,143.79,143.73,6.2635]
[1768488216527,3.15125742,143.79,143.73,6.2635]
[1768488216726,0.04917657,143.77,143.75,0.05272497]
[1768488216929,3.20043399,143.77,143.71,6.2642]
[1768488217129,3.15125742,143.77,143.68,82.2]
[1768488217424,97.3774,143.82,143.66,3.13937906]
[1768488217425,3.15125742,143.75,143.66,3.13937906]
[1768488218014,3.15125742,143.75,143.69,6.31154911]
[1768488219621,6.2613,143.79,143.71,6.2644]
[1768488219832,97.3394,143.87,143.7,3.13937906]
[1768488219833,3.15125742,143.78,143.7,3.13937906]
[1768488220126,9.41145742,143.81,143.7,3.13937906]
[1768488220324,3.15125742,143.8,143.7,3.13937906]
[1768488220724,0.04966568,143.76,143.74,0.04646711]
[1768488220929,3.15125742,143.8,143.74,0.04646711]
[1768488221231,9.41075742,143.83,143.74,0.04646711]
[1768488221534,3.15125742,143.82,143.73,6.2636]
[1768488222025,0.05233054,143.79,143.76,0.0462601]
[1768488222627,3.20358796,143.79,143.72,6.2637]
[1768488222830,3.15125742,143.79,143.72,6.2637]
[1768488223134,9.41235742,143.79,143.7,6.2648]
[1768488223331,3.15125742,143.78,143.7,6.2648]
[1768488223728,0.04649924,143.75,143.68,6.2657]
[1768488225040,0.04649924,143.75,143.7,0.05137643]
[1768488225537,3.19775666,143.75,143.7,0.05137643]
[1768488226127,3.19775666,143.75,143.7,6.31617643]
[1768488227125,3.19775666,143.75,143.7,0.05137643]
[1768488228234,3.19775666,143.75,143.7,6.31597643]
[1768488228731,0.04649924,143.75,143.7,6.31597643]
[1768488228929,0.04649924,143.75,143.71,6.2642]
[1768488229122,3.15125742,143.78,143.7,0.05137643]
[1768488229327,3.15125742,143.78,143.72,6.2639]
[1768488229722,85.39125742,143.81,143.71,3.13937906]
[1768488230232,85.39125742,143.81,143.75,0.04715101]
[1768488230434,0.04761143,143.77,143.75,0.04715101]
[1768488230737,3.15125742,143.81,143.75,6.30975101]
[1768488231432,3.2645033,143.84,143.76,3.16917383]
[1768488231640,0.04766673,143.81,143.76,3.16917383]
[1768488231932,82.24,143.86,143.79,6.31269314]
[1768488232236,3.2645033,143.87,143.8,6.2603]
[1768488232428,9.5207033,143.9,143.79,3.16917383]
[1768488232624,3.2645033,143.9,143.8,100.55567383]
[1768488232831,0.0454392,143.86,143.84,0.04783118]
[1768488233230,3.2645033,143.9,143.84,0.04783118]
[1768488233732,8.98983263,143.94,143.84,100.57350501]
[1768488233733,3.2645033,143.94,143.84,100.57350501]
[1768488233931,3.2645033,143.94,143.84,100.52567383]
[1768488234435,3.2645033,143.94,143.88,0.04823322]
[1768488235037,3.2645033,143.93,143.81,97.3755]
[1768488235242,3.2645033,143.93,143.81,3.16917383]
[1768488235532,9.5195033,143.93,143.81,3.16917383]
[1768488235839,9.5195033,143.93,143.82,3.16917383]
[1768488236144,9.5195033,143.93,143.78,3.16917383]
[1768488236145,3.2645033,143.91,143.78,3.16917383]
[1768488237240,3.2645033,143.9,143.78,3.16917383]
[1768488237429,3.2645033,143.9,143.83,0.04619258]
[1768488237938,9.5209033,143.9,143.83,0.04619258]
[1768488238336,3.2645033,143.89,143.83,0.04619258]
[1768488239533,9.5199033,143.92,143.83,0.04619258]
[1768488239742,0.04984882,143.87,143.82,6.2594]
[1768488239942,85.4645033,143.92,143.86,0.05253936]
[1768488240242,85.4645033,143.92,143.82,3.16917383]
[1768488240639,82.2,143.94,143.84,3.16917383]
[1768488240941,85.4645033,143.94,143.84,3.16917383]
[1768488241242,0.04354996,143.9,143.88,0.0525519]
[1768488241740,3.2645033,143.94,143.88,0.0525519]
[1768488243035,82.2,143.96,143.88,0.0525519]
[1768488243236,3.2645033,143.97,143.88,6.3091519]
[1768488243435,3.2645033,143.97,143.89,3.16917383]
[1768488243637,3.2645033,143.97,143.91,0.04456986]
[1768488244037,3.2645033,144.0,143.91,6.30016986]
[1768488244230,3.2645033,144.0,143.91,6.2556]
[1768488244437,3.2645033,144.0,143.94,0.04426119]
[1768488244638,118.20452817,144.03,143.94,0.04426119]
[1768488244837,55.31858365,144.39,143.94,0.04426119]
[1768488244838,1.20860611,144.13,144.02,3.16917383]
[1768488245033,75.5052783,144.13,144.03,3.16917383]
[1768488245346,12.4805,144.27,144.07,97.2035]
[1768488245543,106.09373263,144.22,144.07,97.2035]
[1768488245846,6.2423,144.23,144.11,6.247]
[1768488246039,8.98983263,144.24,144.11,97.1765]
[1768488246242,82.18,144.23,144.11,97.1765]
[1768488246441,82.18,144.23,144.12,103.4159]
[1768488246647,6.241,144.25,144.13,97.163]
[1768488246648,3.2645033,144.25,144.13,97.163]
[1768488246837,3.2645033,144.21,144.13,97.163]
[1768488247042,0.043995,144.2,144.18,0.04909906]
[1768488247245,82.16,144.19,144.14,103.4018]
[1768488247447,0.043995,144.2,144.14,6.2456]
[1768488247744,82.16,144.19,144.11,97.1765]
[1768488247940,0.043995,144.2,144.14,97.1558]
[1768488248141,3.2645033,144.21,144.11,97.1765]
[1768488248345,82.16,144.2,144.11,97.1765]
[1768488248546,0.04542863,144.18,144.11,97.1765]
[1768488248747,0.04542863,144.18,144.12,103.4169]
[1768488248947,82.14,144.17,144.12,103.4169]
[1768488249352,0.04542863,144.18,144.14,6.2456]
[1768488249546,44.0053,144.17,144.14,6.2456]
[1768488249850,82.12,144.17,144.15,0.05283893]
[1768488250143,85.3845033,144.17,144.07,97.2026]
[1768488250344,3.2645033,144.16,144.07,97.2026]
[1768488250551,3.2645033,144.16,144.04,6.2497]
[1768488251046,3.2645033,144.16,144.0,194.4953]
[1768488251047,3.2645033,144.15,144.01,103.4922]
[1768488251252,3.2645033,144.1,144.01,6.251]
[1768488251448,85.3645033,144.09,143.99,97.2579]
[1768488251652,3.2645033,144.08,143.99,97.2579]
[1768488251850,82.1,144.07,143.99,103.5101]
[1768488252254,82.1,144.07,143.99,6.2522]
[1768488252553,85.3645033,144.07,144.02,0.05308019]
[1768488252748,0.04456766,144.04,144.02,0.05308019]
[1768488252950,0.04456766,144.04,143.97,97.2708]
[1768488252951,0.04456766,144.04,143.97,103.5239]
[1768488253155,0.04456766,144.04,143.97,6.2531]
[1768488253655,0.04456766,144.04,143.95,97.2845]
[1768488253851,0.04456766,144.04,143.94,6.2541]
[1768488253852,3.30907096,144.04,143.94,6.2541]
[1768488254059,3.2645033,144.04,143.98,0.04747434]
[1768488254252,0.0523056,144.0,143.98,0.04747434]
[1768488254754,82.08,143.99,143.94,6.2541]
[1768488255449,70.39286107,143.98,143.94,103.5433]
[1768488255644,33.95606107,143.98,143.94,6.2541]
[1768488256049,33.95606107,143.98,143.95,0.05062604]
[1768488256245,9.65415484,143.98,143.95,0.05062604]
[1768488256454,82.1,143.97,143.95,0.05062604]
[1768488256657,71.5802,143.97,143.95,0.05062604]
[1768488256857,71.5802,143.97,143.87,97.3351]
[1768488257865,9.5166033,144.0,143.89,6.2566]
[1768488258056,0.04758121,143.93,143.86,97.3458]
[1768488258261,3.2645033,143.97,143.84,106.34413263]
[1768488258262,82.1,143.92,143.84,97.3543]
[1768488258566,0.04417629,143.91,143.88,0.04816752]
[1768488258758,82.1,143.9,143.88,0.04816752]
[1768488258964,0.04417629,143.91,143.88,0.04816752]
[1768488259161,82.1,143.9,143.88,0.04816752]
[1768488259366,28.2839,143.9,143.88,0.04816752]
[1768488259564,82.14417629,143.91,143.88,0.04816752]
[1768488259769,0.04417629,143.91,143.88,0.04816752]
[1768488260268,82.14417629,143.91,143.88,0.04816752]
[1768488260462,0.04417629,143.91,143.88,0.04816752]
[1768488263267,82.16417629,143.91,143.88,0.04816752]
[1768488263465,85.45552995,143.91,143.79,97.3925]
[1768488263770,85.41135366,143.91,143.79,97.3925]
[1768488264070,85.41135366,143.91,143.78,97.3995]
[1768488264264,3.09513799,143.9,143.77,97.4053]
[1768488264671,0.04530386,143.85,143.77,97.4053]
[1768488264864,0.04530386,143.85,143.82,0.04633607]
[1768488266570,3.09513799,143.9,143.82,1.44633607]
[1768488266571,82.12,143.89,143.82,1.44633607]
[1768488266765,194.5227,143.99,143.82,0.04633607]
[1768488267071,194.5227,143.99,143.79,97.3902]
[1768488267072,9.35003799,143.93,143.8,97.3858]
[1768488267274,3.09513799,143.92,143.8,97.3858]
[1768488267571,0.04389345,143.87,143.8,97.3858]
[1768488268368,0.04389345,143.87,143.8,98.7858]
[1768488268562,82.14,143.91,143.82,97.3711]
[1768488269560,0.05315788,143.88,143.85,0.04761263]
[1768488270875,97.2816,143.96,143.86,97.3407]
[1768488270876,3.09513799,143.96,143.86,97.3407]
[1768488271069,3.09513799,143.96,143.87,97.3362]
[1768488271566,3.11724422,143.99,143.88,97.3307]
[1768488271762,82.14,143.98,143.88,97.3307]
[1768488271967,85.25724422,143.98,143.87,102.86076357]
[1768488272168,3.11724422,143.97,143.85,97.3481]
[1768488272777,3.11724422,143.97,143.88,6.2569]
[1768488272978,3.11724422,143.96,143.85,97.3481]
[1768488273472,3.11724422,143.96,143.88,6.2568]
[1768488273678,82.14,143.95,143.88,6.2568]
[1768488273866,85.25724422,143.95,143.88,6.2568]
[1768488274068,0.0460868,143.93,143.86,6.2577]
[1768488274470,0.0460868,143.93,143.85,97.3481]
[1768488274671,0.0460868,143.93,143.87,6.2573]
[1768488274878,0.0460868,143.93,143.82,194.7395]
[1768488274879,0.0460868,143.93,143.83,97.363]
[1768488275068,3.11724422,143.93,143.83,97.363]
[1768488275272,0.04509049,143.89,143.86,6.2577]
[1768488275473,0.04509049,143.89,143.84,97.3561]
[1768488275673,85.25724422,143.93,143.86,0.0458145]
[1768488275979,85.25724422,143.93,143.88,6.257]
[1768488276670,82.14,143.95,143.87,97.3365]
[1768488276869,82.14,143.95,143.86,97.3416]
[1768488276870,0.04743213,143.92,143.89,0.04558782]
[1768488278777,0.04743213,143.92,143.84,97.3561]
[1768488278982,0.04743213,143.92,143.83,97.3661]
[1768488279381,3.11724422,143.93,143.8,97.3857]
[1768488279884,9.37314422,143.91,143.81,6.2598]
[1768488280092,0.04390027,143.88,143.8,97.3857]
[1768488281287,0.04390027,143.88,143.83,0.04723014]
[1768488281488,0.04390027,143.88,143.83,6.30633014]
[1768488283483,0.04390027,143.88,143.83,0.04723014]
[1768488283791,3.16114449,143.88,143.77,97.4069]
[1768488283991,3.11724422,143.88,143.81,6.26]
[1768488285093,0.04610226,143.86,143.76,102.93756357]
[1768488285388,3.11724422,143.86,143.74,97.4267]
[1768488285589,0.05344177,143.82,143.8,0.05091878]
[1768488285894,0.05344177,143.82,143.74,97.4267]
[1768488286291,3.17068599,143.82,143.75,6.2624]
[1768488286682,82.16,143.81,143.73,97.4301]
[1768488286988,0.04781105,143.8,143.77,0.04513861]
[1768488287781,3.11724422,143.85,143.77,0.04513861]
[1768488288185,82.16,143.84,143.78,6.2612]
[1768488288380,82.16,143.84,143.75,97.4158]
[1768488288589,3.11724422,143.83,143.73,97.4296]
[1768488288786,3.11724422,143.83,143.76,6.262]
[1768488288986,82.16,143.82,143.76,6.262]
[1768488289186,0.05286487,143.79,143.77,0.0477717]
[1768488289392,82.16,143.82,143.77,0.0477717]
[1768488290191,85.27724422,143.82,143.7,97.4527]
[1768488290586,3.11724422,143.81,143.7,97.4527]
[1768488290886,85.31625821,143.8,143.66,197.69816357]
[1768488291393,0.04713313,143.75,143.66,103.00516357]
[1768488292395,0.04713313,143.75,143.64,103.01636357]
[1768488292595,0.04713313,143.75,143.66,97.4812]
[1768488292793,82.18,143.75,143.66,97.4812]
[1768488292998,0.05092389,143.72,143.65,97.4863]
[1768488293698,0.00066591,143.72,143.68,6.2656]
[1768488293993,0.00066591,143.72,143.62,179.6827]
[1768488294295,3.15625821,143.74,143.65,6.2668]
[1768488294989,0.04927292,143.71,143.65,6.2668]
[1768488295188,0.04927292,143.71,143.68,0.04417523]
[1768488295495,0.04927292,143.71,143.62,97.5027]
[1768488295695,3.15625821,143.79,143.66,97.4769]
[1768488295899,85.35625821,143.78,143.66,97.4769]
[1768488296101,3.15625821,143.77,143.64,97.4944]
[1768488296591,85.35625821,143.76,143.65,97.487]
[1768488296794,3.15625821,143.75,143.65,6.2669]
[1768488297096,0.04959883,143.72,143.65,6.2669]
[1768488297294,3.20585704,143.72,143.63,6.2678]
[1768488297597,3.15625821,143.72,143.62,97.5027]
[1768488297899,85.35625821,143.72,143.63,97.5011]
[1768488298197,85.35625821,143.72,143.59,97.5239]
[1768488298198,0.05201224,143.69,143.6,82.2]
[1768488298493,3.15625821,143.69,143.57,97.5411]
[1768488298689,3.15625821,143.69,143.53,195.135]
[1768488298690,3.15625821,143.65,143.53,195.135]
[1768488298892,3.15625821,143.65,143.55,97.5533]
[1768488299397,3.15625821,143.65,143.59,0.04885286]
[1768488299595,3.15625821,143.68,143.59,0.04885286]
[1768488299796,3.15625821,143.68,143.6,6.269]
[1768488299987,82.22,143.69,143.6,6.269]
[1768488300183,3.15625821,143.71,143.6,97.5203]
[1768488300387,3.15625821,143.71,143.57,179.7584]
[1768488300593,0.052561,143.67,143.57,82.22]
[1768488300791,0.052561,143.67,143.54,179.7814]
[1768488300792,3.20881921,143.67,143.54,179.7814]
[1768488300986,97.4642,143.69,143.51,103.10666357]
[1768488300987,3.15625821,143.65,143.51,103.10666357]
[1768488301188,3.15625821,143.68,143.55,97.5544]
[1768488301391,3.15625821,143.67,143.58,6.2699]
[1768488301585,3.15625821,143.71,143.58,97.535]
[1768488301898,3.15625821,143.68,143.56,82.22]
[1768488302197,0.04552326,143.66,143.56,82.22]
[1768488302493,6.2668,143.66,143.56,6.2707]
[1768488302800,9.42305821,143.66,143.53,179.8097]
[1768488302996,9.42305821,143.66,143.54,97.5624]
[1768488303195,3.15625821,143.66,143.57,6.2705]
[1768488303398,0.05236657,143.61,143.59,0.04880856]
[1768488303604,3.15625821,143.69,143.59,0.04880856]
[1768488303789,3.15625821,143.69,143.59,97.57330856]
[1768488303988,3.15625821,143.72,143.59,97.5245]
[1768488304193,3.15625821,143.72,143.62,6.2681]
[1768488304498,6.2637,143.73,143.62,97.5076]
[1768488304695,3.15625821,143.75,143.62,97.5076]
[1768488304696,9.41905821,143.75,143.66,0.04578283]
[1768488304906,3.15625821,143.74,143.66,0.04578283]
[1768488305096,3.15625821,143.78,143.65,97.4876]
[1768488305294,3.15625821,143.77,143.63,179.7384]
[1768488305803,6.2612,143.79,143.68,6.2655]
[1768488305994,3.15625821,143.79,143.66,97.4804]
[1768488306193,0.04676787,143.71,143.69,0.04823082]
[1768488306393,3.15625821,143.75,143.65,6.2668]
[1768488306606,3.15625821,143.75,143.63,185.26296357]
[1768488306607,0.04504583,143.71,143.64,97.4946]
[1768488306798,0.04504583,143.71,143.65,97.4853]
[1768488307003,0.04504583,143.71,143.64,97.4946]
[1768488307305,0.04504583,143.71,143.66,0.05035859]
[1768488308006,0.04504583,143.71,143.67,6.2659]
[1768488308402,6.2616,143.78,143.66,97.52875859]
[1768488308602,6.2616,143.78,143.66,97.4784]
[1768488309110,9.41785821,143.78,143.66,97.4784]
[1768488309500,9.41785821,143.78,143.71,0.04757903]
[1768488309702,0.0509793,143.73,143.71,0.04757903]
[1768488309902,3.15625821,143.82,143.71,0.04757903]
[1768488310302,3.15625821,143.82,143.72,6.2636]
[1768488310700,3.15625821,143.82,143.71,97.4475]
[1768488310901,9.41785821,143.78,143.68,82.24]
[1768488311100,3.15625821,143.78,143.68,82.24]
[1768488311308,0.05310052,143.74,143.68,82.24]
[1768488312110,0.00340944,143.74,143.69,6.265]
[1768488312302,0.00340944,143.74,143.7,0.05102989]
[1768488315309,0.00340944,143.74,143.71,6.2643]
[1768488315710,0.00340944,143.74,143.7,0.05102989]
[1768488316010,82.24,143.83,143.7,0.05102989]
[1768488316011,6.2593,143.83,143.74,6.2628]
[1768488316314,9.41555821,143.83,143.74,6.2628]
[1768488316512,3.15625821,143.83,143.74,6.2628]
[1768488317010,3.15625821,143.83,143.75,6.2624]
[1768488317310,3.15625821,143.83,143.71,97.4462]
[1768488317311,9.41555821,143.83,143.77,0.05161953]
[1768488317707,0.04616858,143.81,143.77,0.05161953]
[1768488319013,3.15625821,143.87,143.77,0.05161953]
[1768488319217,3.15625821,143.87,143.76,82.24]
[1768488319617,9.41385821,143.87,143.76,82.24]
[1768488319911,100.49915821,143.87,143.76,82.24]
[1768488320116,3.15625821,143.84,143.75,82.24]
[1768488320816,3.15625821,143.84,143.77,6.2617]
[1768488321418,0.0490012,143.82,143.79,0.05135538]
[1768488322511,3.21862818,143.87,143.79,0.05135538]
[1768488322817,3.21862818,143.89,143.8,97.3863]
[1768488323021,5.52456357,143.93,143.8,179.6063]
[1768488323022,3.21862818,143.92,143.8,179.6063]
[1768488323317,9.47422818,143.92,143.84,6.2586]
[1768488323518,3.21862818,143.92,143.81,97.3789]
[1768488323718,3.21862818,143.92,143.8,82.22]
[1768488323919,0.04817221,143.89,143.82,6.2596]
[1768488324217,0.04817221,143.89,143.81,97.3791]
[1768488324515,3.21862818,143.92,143.85,6.258]
[1768488325115,0.04978831,143.9,143.87,0.04597435]
[1768488325411,0.04978831,143.9,143.81,97.3791]
[1768488325607,3.19587842,143.91,143.8,82.22]
[1768488325807,3.19587842,143.91,143.76,102.93676357]
[1768488326010,3.19587842,143.89,143.77,82.22]
[1768488326216,3.19587842,143.85,143.77,82.22]
[1768488326516,0.04686507,143.84,143.77,82.22]
[1768488326718,0.04686507,143.84,143.76,6.262]
[1768488327510,0.04686507,143.84,143.69,97.4548]
[1768488327511,3.19587842,143.83,143.69,97.4548]
[1768488327713,3.19587842,143.83,143.71,97.446]
[1768488327918,6.2602,143.81,143.72,6.2637]
[1768488328118,3.19587842,143.8,143.69,179.6548]
[1768488328422,3.19587842,143.78,143.69,82.2]
[1768488328610,3.19587842,143.77,143.69,82.2]
[1768488328815,3.19587842,143.81,143.67,97.4724]
[1768488329014,0.05108617,143.74,143.72,0.04935616]
[1768488329209,6.2612,143.79,143.7,6.2646]
[1768488329410,6.2612,143.79,143.68,97.4672]
[1768488329411,3.19587842,143.8,143.69,97.4609]
[1768488329618,3.19587842,143.8,143.73,0.04428431]
[1768488330716,0.04697167,143.78,143.73,0.04428431]
[1768488330914,3.19587842,143.84,143.76,6.2619]
[1768488331111,3.19587842,143.84,143.73,97.4289]
[1768488331318,3.19587842,143.84,143.71,179.6435]
[1768488331618,3.19587842,143.78,143.67,97.4744]
[1768488331825,3.19587842,143.78,143.66,97.4804]
[1768488332023,3.19587842,143.78,143.67,97.474]
[1768488332224,3.19587842,143.78,143.68,97.4669]
[1768488332617,0.04554941,143.74,143.72,0.04590261]
[1768488332914,3.19587842,143.78,143.72,0.04590261]
[1768488335424,8.99515227,143.81,143.68,6.2655]
[1768488335425,3.24648437,143.76,143.68,6.2655]
[1768488335618,3.19587842,143.76,143.68,6.2655]
[1768488336722,3.19587842,143.76,143.69,6.2651]
[1768488337319,0.05211376,143.74,143.71,0.04743127]
[1768488338123,0.05211376,143.74,143.67,6.2659]
[1768488339422,0.05211376,143.74,143.68,6.2655]
[1768488339722,3.19587842,143.74,143.65,82.22]
[1768488339918,3.24762464,143.72,143.7,0.0469631]
[1768488340224,3.19587842,143.72,143.61,82.22]
[1768488340425,3.19587842,143.71,143.61,82.22]
[1768488340726,3.19587842,143.71,143.57,179.7809]
[1768488340922,3.19587842,143.68,143.59,6.2696]
[1768488341425,6.31812182,143.65,143.53,97.567]
[1768488341629,3.19587842,143.65,143.54,82.24]
[1768488341923,6.2687,143.62,143.5,6.2734]
[1768488342128,3.19587842,143.61,143.48,97.6026]
[1768488342630,3.19587842,143.6,143.5,97.5897]
[1768488342832,0.04559089,143.56,143.53,0.05289118]
[1768488343215,0.04559089,143.56,143.53,6.32499118]
[1768488343422,3.19587842,143.6,143.53,6.32499118]
[1768488343716,3.19587842,143.63,143.53,0.05289118]
[1768488344021,3.19587842,143.63,143.55,6.2712]
[1768488344221,3.19587842,143.63,143.52,179.8106]
[1768488344428,9.46407842,143.63,143.53,6.2721]
[1768488344828,0.05189213,143.59,143.53,6.2721]
[1768488345024,0.05189213,143.59,143.57,0.04658878]
[1768488345228,82.26,143.67,143.57,0.04658878]
[1768488345524,82.26,143.67,143.53,97.5649]
[1768488345717,6.2677,143.64,143.53,6.272]
[1768488346329,0.04930885,143.6,143.5,82.26]
[1768488346727,6.2682,143.63,143.51,97.5822]
[1768488346923,97.481,143.67,143.51,97.5822]
[1768488347128,3.19587842,143.65,143.51,97.5822]
[1768488347428,3.19587842,143.64,143.54,6.2717]
[1768488348025,3.19587842,143.63,143.54,6.2717]
[1768488348422,3.19587842,143.63,143.52,6.2725]
[1768488348731,9.46407842,143.63,143.51,97.5822]
[1768488348925,3.19587842,143.62,143.53,6.2721]
[1768488349121,3.19587842,143.61,143.5,82.26]
[1768488349321,3.19587842,143.61,143.46,195.2295]
[1768488349322,3.19587842,143.58,143.46,195.2295]
[1768488349529,3.19587842,143.58,143.49,6.2739]
[1768488349728,3.19587842,143.58,143.44,97.6295]
[1768488350030,3.19587842,143.56,143.43,82.28]
[1768488350341,3.19587842,143.54,143.44,6.2761]
[1768488350533,3.19587842,143.54,143.42,179.9387]
[1768488350534,3.19587842,143.54,143.43,97.6352]
[1768488350729,82.3,143.56,143.48,0.04782533]
[1768488351123,82.3,143.56,143.44,97.6295]
[1768488351330,85.46703313,143.56,143.42,82.3]
[1768488351529,3.16703313,143.55,143.42,82.3]
[1768488351729,3.16703313,143.53,143.43,6.2765]
[1768488351932,3.16703313,143.53,143.42,82.3]
[1768488352228,3.16703313,143.53,143.47,0.05107393]
[1768488352438,0.05194012,143.49,143.42,82.3]
[1768488352627,0.05194012,143.49,143.35,420.01198612]
[1768488352628,3.21897325,143.49,143.37,97.6772]
[1768488352939,3.16703313,143.48,143.37,6.2792]
[1768488353128,3.16703313,143.48,143.37,97.6782]
[1768488353433,3.16703313,143.48,143.36,103.9608]
[1768488353736,0.04931956,143.44,143.41,0.04923337]
[1768488354430,3.16703313,143.52,143.41,0.04923337]
[1768488354826,3.16703313,143.49,143.35,25.68753839]
[1768488355033,3.16703313,143.49,143.36,180.0053]
[1768488355235,9.44153313,143.49,143.37,6.2793]
[1768488355530,0.05210205,143.44,143.41,0.04830877]
[1768488355733,188.88925227,143.53,143.41,0.04830877]
[1768488355734,3.16703313,143.52,143.41,0.04830877]
[1768488356138,3.16703313,143.52,143.39,97.662]
[1768488356434,100.75993313,143.5,143.37,8.99515227]